bitfinex-derivatives/quotes_SOLF0:USTF0_20260311
["timestamp","ask_amount","ask_price","bid_price","bid_amount"]
[1773232709915,1.12447997,85.081,85.042,4.66702219]
[1773232710918,1.12447997,85.081,85.042,15.24902219]
[1773232711119,10.576,85.087,85.043,4.66702219]
[1773232711319,1.09356599,85.115,85.043,4.66702219]
[1773232712415,2.93671166,85.135,85.069,4.66702219]
[1773232712625,1.08031962,85.128,85.069,4.66702219]
[1773232713319,10.572,85.122,85.076,10.578]
[1773232713521,10.572,85.122,85.076,15.24502219]
[1773232713716,0.97031778,85.152,85.077,4.66702219]
[1773232713918,0.97031778,85.15,85.077,4.66702219]
[1773232714124,0.96959196,85.148,85.077,4.66702219]
[1773232714313,0.95750256,85.146,85.092,4.66702219]
[1773232714519,0.95750256,85.145,85.092,4.66702219]
[1773232714916,2.93593513,85.144,85.092,4.66702219]
[1773232715114,10.571,85.132,85.092,4.66702219]
[1773232715315,0.91334815,85.141,85.037,4.66702219]
[1773232715511,0.90139761,85.139,85.037,4.66702219]
[1773232715714,10.571,85.128,85.083,10.577]
[1773232715922,10.571,85.128,85.084,4.66702219]
[1773232717022,21.135,85.16,85.084,4.66702219]
[1773232717023,10.572,85.123,85.085,10.577]
[1773232717225,0.93844493,85.127,85.084,4.66702219]
[1773232717831,0.93844493,85.127,85.067,4.66702219]
[1773232718630,10.573,85.115,85.069,15.24602219]
[1773232718824,10.573,85.115,85.002,164.692]
[1773232718825,0.91452213,85.113,85.022,4.66702219]
[1773232719027,164.383,85.163,84.947,200.7394944]
[1773232719028,10.577,85.085,85.044,10.582]
[1773232719324,0.97276478,85.094,85.045,4.66702219]
[1773232720032,0.97276478,85.094,85.056,10.58]
[1773232720824,0.97276478,85.094,85.048,15.24802219]
[1773232721620,10.576,85.091,85.048,15.24802219]
[1773232723224,0.97276478,85.094,85.048,15.24802219]
[1773232724336,10.576,85.093,85.048,15.24802219]
[1773232725031,10.575,85.101,85.055,4.66702219]
[1773232726329,10.575,85.095,85.055,4.66702219]
[1773232726836,0.8432857,85.111,85.055,4.66702219]
[1773232727133,10.575,85.096,85.055,4.66702219]
[1773232728835,10.574,85.105,85.058,4.66702219]
[1773232729034,0.83910202,85.109,85.058,4.66702219]
[1773232729035,2.93717553,85.104,85.058,4.66702219]
[1773232729231,0.83910202,85.109,85.058,4.66702219]
[1773232729438,2.93717514,85.108,85.058,4.66702219]
[1773232729631,2.93717514,85.107,85.058,4.66702219]
[1773232729934,0.83910202,85.109,85.058,4.66702219]
[1773232730130,2.93697137,85.108,85.058,4.66702219]
[1773232730337,10.575,85.102,85.06,4.11245175]
[1773232731236,0.77232586,85.095,85.046,4.11327272]
[1773232731439,0.76251364,85.093,85.011,4.11327272]
[1773232731639,10.578,85.078,85.034,10.583]
[1773232732437,0.75221076,85.108,85.046,4.1135744]
[1773232732635,2.93718133,85.107,85.046,4.1135744]
[1773232732838,0.75221076,85.108,85.046,4.1135744]
[1773232732839,2.93718133,85.106,85.046,4.1135744]
[1773232733038,3.68380458,85.105,85.046,4.1135744]
[1773232733337,10.575,85.097,85.051,4.11636816]
[1773232733533,0.73703514,85.104,85.051,4.11636816]
[1773232733737,0.73703514,85.102,85.051,4.11636816]
[1773232734042,0.73703514,85.1,85.051,4.11636816]
[1773232734433,10.576,85.089,85.051,4.11636816]
[1773232735043,10.577,85.083,85.051,4.11636816]
[1773232735338,0.63575175,85.098,85.051,4.11636816]
[1773232736134,10.577,85.086,85.051,4.11636816]
[1773232737738,10.577,85.08,85.041,10.582]
[1773232738235,0.60083732,85.086,85.023,4.45753257]
[1773232738442,0.59188805,85.084,85.023,4.45753257]
[1773232738639,0.59188805,85.082,85.023,4.45753257]
[1773232738942,0.59188805,85.08,85.023,4.45753257]
[1773232739135,0.59368835,85.078,85.023,4.45753257]
[1773232739338,10.58,85.059,85.023,4.45753257]
[1773232740242,11.16438968,85.057,85.013,10.586]
[1773232740432,11.16438968,85.057,85.007,4.45753257]
[1773232740433,0.57564481,85.093,85.016,4.45753257]
[1773232740741,10.578,85.078,85.016,4.45753257]
[1773232741041,0.57564481,85.091,85.046,10.581]
[1773232741343,10.577,85.084,85.044,4.45753257]
[1773232741639,0.57564481,85.091,85.044,4.45753257]
[1773232741842,3.45681496,85.09,85.044,4.45753257]
[1773232742037,2.93756504,85.089,85.046,4.45753257]
[1773232742334,2.93756504,85.088,85.046,4.45753257]
[1773232742535,2.93756504,85.087,85.048,10.581]
[1773232742734,2.93756504,85.086,85.048,10.581]
[1773232742932,2.93756504,85.085,85.048,10.581]
[1773232743136,2.93756504,85.084,85.048,10.581]
[1773232743342,2.93747767,85.083,85.048,10.581]
[1773232743542,10.575,85.098,85.048,10.581]
[1773232743738,10.576,85.093,85.048,10.581]
[1773232743939,2.93747767,85.092,85.048,10.581]
[1773232744140,2.93747767,85.091,85.048,10.581]
[1773232744341,2.93747767,85.09,85.048,10.581]
[1773232744536,2.93747767,85.089,85.048,10.581]
[1773232744842,10.575,85.101,85.051,10.581]
[1773232745040,2.93723459,85.1,85.052,4.45753257]
[1773232745245,0.4727695,85.115,85.052,4.45753257]
[1773232745442,2.93691683,85.114,85.052,4.45753257]
[1773232745644,2.93691683,85.113,85.052,4.45753257]
[1773232745845,2.93691683,85.112,85.052,4.45753257]
[1773232746138,2.93691683,85.111,85.052,4.45753257]
[1773232746343,2.93691683,85.11,85.068,4.45753257]
[1773232746543,2.93691683,85.109,85.068,4.45753257]
[1773232746748,2.93691683,85.108,85.068,4.45753257]
[1773232747045,2.93691683,85.107,85.068,4.45753257]
[1773232747244,2.93691683,85.106,85.068,4.45753257]
[1773232747444,2.93691683,85.105,85.068,4.45753257]
[1773232747642,0.4727695,85.115,85.068,4.45753257]
[1773232747841,2.9368252,85.114,85.068,4.45753257]
[1773232748144,2.9368252,85.113,85.068,4.45753257]
[1773232748343,10.574,85.108,85.068,4.45753257]
[1773232748544,2.9368252,85.107,85.068,4.45753257]
[1773232748734,2.9368252,85.106,85.068,4.45753257]
[1773232748939,2.9368252,85.105,85.068,4.45753257]
[1773232749138,0.4727695,85.115,85.068,4.45753257]
[1773232749338,0.34416175,85.113,85.068,4.45753257]
[1773232749646,10.573,85.111,85.068,4.45753257]
[1773232749841,2.93682812,85.11,85.069,10.579]
[1773232750042,2.93682812,85.109,85.068,4.45753257]
[1773232750242,2.93682812,85.108,85.068,4.45753257]
[1773232750444,2.93682812,85.107,85.068,4.45753257]
[1773232750644,2.93682812,85.106,85.068,4.45753257]
[1773232750947,2.93682812,85.105,85.068,4.45753257]
[1773232751246,10.574,85.108,85.068,4.45753257]
[1773232751446,2.93682945,85.107,85.068,4.45753257]
[1773232751648,2.93682945,85.106,85.068,4.45753257]
[1773232751848,2.93682945,85.105,85.068,4.45753257]
[1773232752150,10.574,85.108,85.068,4.45753257]
[1773232752347,2.93682945,85.107,85.068,4.45753257]
[1773232752545,10.574,85.104,85.068,4.45753257]
[1773232753045,14.61235115,85.166,85.02,21.17]
[1773232753046,0.29201827,85.102,85.054,4.45753257]
[1773232753350,0.29744623,85.1,85.054,4.45753257]
[1773232753549,10.576,85.09,85.054,4.45753257]
[1773232755348,10.576,85.088,85.054,4.45753257]
[1773232757646,0.28992082,85.099,85.054,4.45753257]
[1773232757848,0.26183851,85.097,85.041,4.45753257]
[1773232758049,0.26183851,85.095,85.041,4.45753257]
[1773232758249,0.26161264,85.093,85.041,4.45753257]
[1773232758453,2.93746315,85.092,85.041,4.45753257]
[1773232758647,10.576,85.087,85.049,15.03853257]
[1773232758852,0.26161264,85.093,85.05,4.45753257]
[1773232759052,2.93746449,85.092,85.05,4.45753257]
[1773232759251,10.576,85.089,85.055,10.58]
[1773232759451,2.93746449,85.088,85.055,10.58]
[1773232759653,2.93746202,85.087,85.055,10.58]
[1773232759954,10.576,85.089,85.055,10.58]
[1773232760849,0.24802577,85.116,85.06,4.27395533]
[1773232761049,0.24802577,85.114,85.06,4.27395533]
[1773232761249,0.23347358,85.112,85.06,4.27395533]
[1773232761550,0.22668989,85.11,85.06,4.27395533]
[1773232761752,10.575,85.102,85.064,4.27395533]
[1773232761952,0.22668989,85.124,85.064,4.27395533]
[1773232762147,0.2264776,85.122,85.064,4.27395533]
[1773232762347,3.15660588,85.121,85.064,4.27395533]
[1773232762549,2.93683406,85.12,85.074,4.27395533]
[1773232762745,2.93683406,85.119,85.074,4.27395533]
[1773232762945,0.21977182,85.146,85.074,4.27395533]
[1773232763147,0.22139025,85.144,85.074,4.27395533]
[1773232763351,0.2147615,85.142,85.074,4.27395533]
[1773232763552,0.2147615,85.14,85.074,4.27395533]
[1773232763754,21.136,85.158,85.089,4.27395533]
[1773232763755,10.571,85.129,85.089,4.27395533]
[1773232764048,2.93626709,85.128,85.089,4.27395533]
[1773232764248,2.93626709,85.127,85.089,4.27395533]
[1773232764555,2.93626709,85.126,85.089,4.27395533]
[1773232764743,2.93626709,85.125,85.089,4.27395533]
[1773232765053,2.93626709,85.124,85.089,4.27395533]
[1773232765248,2.93626709,85.123,85.089,4.27395533]
[1773232765455,10.571,85.132,85.091,4.27395533]
[1773232765654,2.93605863,85.131,85.091,4.27395533]
[1773232765953,2.93605863,85.13,85.091,4.27395533]
[1773232766154,2.93605863,85.129,85.091,4.27395533]
[1773232766351,2.93605863,85.128,85.093,4.27395533]
[1773232766550,2.93605863,85.127,85.093,4.27395533]
[1773232766751,10.571,85.132,85.093,4.27395533]
[1773232766951,2.93605686,85.131,85.093,4.27395533]
[1773232767249,2.93605686,85.13,85.093,4.27395533]
[1773232767554,2.93605686,85.129,85.093,4.27395533]
[1773232767854,2.93605686,85.128,85.093,4.27395533]
[1773232768154,10.571,85.132,85.093,4.27395533]
[1773232768354,2.93605845,85.131,85.093,4.27395533]
[1773232768554,2.93605845,85.13,85.093,4.27395533]
[1773232768750,2.93605845,85.129,85.093,4.27395533]
[1773232768953,10.571,85.132,85.093,4.27395533]
[1773232769154,2.93605806,85.131,85.097,4.27395533]
[1773232769350,0.2147615,85.138,85.097,4.27395533]
[1773232769550,2.93596009,85.137,85.097,4.27395533]
[1773232769755,2.93596009,85.136,85.097,4.27395533]
[1773232770053,2.93596009,85.135,85.097,4.27395533]
[1773232770259,0.13755112,85.166,85.099,4.27395533]
[1773232770557,2.93572414,85.165,85.099,4.27395533]
[1773232770751,2.93572414,85.164,85.099,4.27395533]
[1773232771054,0.13755112,85.179,85.123,4.27395533]
[1773232771354,0.12821235,85.177,85.109,4.27395533]
[1773232771546,0.12216877,85.164,85.109,4.27395533]
[1773232772149,2.93500782,85.163,85.109,4.27395533]
[1773232772351,0.12216877,85.164,85.109,4.27395533]
[1773232772748,0.11603251,85.154,85.095,4.27395533]
[1773232772948,0.11603251,85.154,85.05,21.162]
[1773232772949,0.11603251,85.152,85.071,4.27395533]
[1773232773252,0.39290958,85.15,85.071,4.27395533]
[1773232773448,0.38700403,85.148,85.071,4.27395533]
[1773232773646,0.38700403,85.146,85.071,4.27395533]
[1773232773850,0.38700403,85.144,85.071,4.27395533]
[1773232774048,0.38700403,85.142,85.071,4.27395533]
[1773232774249,0.38665679,85.14,85.071,4.27395533]
[1773232774445,10.571,85.128,85.082,10.577]
[1773232775051,10.572,85.12,85.073,4.27395533]
[1773232775453,10.571,85.13,85.08,4.27395533]
[1773232775650,2.93630877,85.129,85.08,4.27395533]
[1773232775853,2.93630877,85.128,85.08,4.27395533]
[1773232776057,2.93630877,85.127,85.08,4.27395533]
[1773232776356,0.38081907,85.138,85.08,4.27395533]
[1773232776553,0.43045887,85.136,85.08,4.27395533]
[1773232776752,0.43045887,85.134,85.08,4.27395533]
[1773232777053,0.43045887,85.132,85.08,4.27395533]
[1773232777359,10.571,85.127,85.082,10.577]
[1773232778147,0.4024791,85.127,85.08,4.27395533]
[1773232778452,10.573,85.116,85.08,4.27395533]
[1773232778655,0.4024791,85.127,85.08,4.27395533]
[1773232778851,10.572,85.123,85.082,10.577]
[1773232779950,8.67637579,85.152,85.09,4.27395533]
[1773232779951,10.57,85.137,85.09,4.27395533]
[1773232780458,0.35384429,85.135,85.058,4.27395533]
[1773232780649,0.35384429,85.135,85.046,42.79383625]
[1773232780650,2.93597496,85.134,85.084,4.27395533]
[1773232780858,0.35384429,85.135,85.084,4.27395533]
[1773232782347,0.37964924,85.133,85.084,4.27395533]
[1773232783154,0.37964924,85.131,85.084,4.27395533]
[1773232783353,2.93642743,85.13,85.084,4.27395533]
[1773232783657,0.37219932,85.128,85.084,4.27395533]
[1773232783953,10.572,85.121,85.084,4.27395533]
[1773232784558,0.36666228,85.12,85.075,10.578]
[1773232787160,0.36666228,85.12,85.082,10.577]
[1773232787362,10.571,85.13,85.083,4.27395533]
[1773232787756,0.05931123,85.156,85.099,4.27395533]
[1773232787961,0.05931123,85.17,85.099,4.27395533]
[1773232788167,2.93527702,85.169,85.099,4.27395533]
[1773232788461,13.50127702,85.168,85.121,4.27395533]
[1773232788656,2.93527702,85.167,85.121,4.27395533]
[1773232788857,2.93527702,85.166,85.121,4.27395533]
[1773232789058,2.93527702,85.165,85.121,4.27395533]
[1773232789256,0.04712663,85.163,85.121,4.27395533]
[1773232789566,0.04712663,85.161,85.076,4.27395533]
[1773232789854,21.13,85.179,85.076,4.27395533]
[1773232789855,0.04399612,85.159,85.076,4.27395533]
[1773232790056,0.04375682,85.157,85.076,4.27395533]
[1773232790260,0.04375682,85.155,85.076,4.27395533]
[1773232790465,10.57,85.136,85.091,14.83841952]
[1773232791763,10.571,85.133,85.091,14.83841952]
[1773232791965,2.93613797,85.132,85.091,4.26241952]
[1773232792162,21.133,85.17,85.091,4.26241952]
[1773232792363,2.9361034,85.169,85.091,4.26241952]
[1773232792562,2.9361034,85.168,85.094,4.3302266]
[1773232792761,21.133,85.17,85.094,4.3302266]
[1773232792762,2.9361034,85.167,85.094,4.3302266]
[1773232792960,21.133,85.17,85.094,4.3302266]
[1773232792961,2.9361034,85.166,85.094,4.3302266]
[1773232793162,2.9361034,85.165,85.094,4.3302266]
[1773232793364,2.9361034,85.164,85.094,4.3302266]
[1773232793563,10.569,85.143,85.094,4.3302266]
[1773232793866,2.9361034,85.142,85.094,4.3302266]
[1773232794068,2.9361034,85.141,85.094,4.3302266]
[1773232794268,21.133,85.17,85.094,4.3302266]
[1773232794464,2.93575635,85.169,85.094,4.3302266]
[1773232794768,10.569,85.146,85.097,4.30704987]
[1773232794962,2.93574016,85.145,85.097,4.30704987]
[1773232795162,8.74434265,85.184,85.097,4.30704987]
[1773232795458,11.68004282,85.183,85.097,4.30704987]
[1773232795766,10.57,85.142,85.097,4.30704987]
[1773232797570,2.93593432,85.141,85.097,4.30704987]
[1773232797770,2.93593432,85.14,85.097,4.30704987]
[1773232797970,2.93593432,85.139,85.097,4.30704987]
[1773232798168,2.93593432,85.138,85.097,4.30704987]
[1773232798375,2.93593432,85.137,85.05,4.30529809]
[1773232798562,2.93593432,85.136,85.051,4.30529809]
[1773232798761,2.93593432,85.135,85.077,4.30529809]
[1773232798970,2.93593432,85.134,85.077,4.30529809]
[1773232799166,2.93593432,85.133,85.077,4.30529809]
[1773232799474,2.93593432,85.132,85.077,4.30529809]
[1773232799673,2.93593432,85.131,85.077,4.30529809]
[1773232799972,2.93593432,85.13,85.077,4.30529809]
[1773232800170,2.93593432,85.129,85.077,4.30529809]
[1773232800481,21.135,85.16,85.081,14.88002389]
[1773232800772,2.93614481,85.159,85.081,14.88002389]
[1773232800970,2.93614481,85.158,85.081,14.88002389]
[1773232801169,2.93614481,85.157,85.081,14.88002389]
[1773232801372,2.93614481,85.156,85.082,4.31109011]
[1773232801671,21.138,85.151,85.082,4.31109011]
[1773232801967,2.93614481,85.15,85.082,4.31109011]
[1773232802273,2.93614481,85.149,85.082,4.31109011]
[1773232802477,10.572,85.123,85.084,4.31112879]
[1773232802864,10.572,85.123,85.087,4.31112879]
[1773232803068,10.571,85.131,85.087,4.31112879]
[1773232803272,2.9361429,85.13,85.087,4.31112879]
[1773232803577,2.9361429,85.129,85.076,4.31830284]
[1773232803776,2.9361429,85.128,85.076,4.31830284]
[1773232803976,2.9361429,85.127,85.076,4.31830284]
[1773232804172,10.572,85.12,85.077,4.31833721]
[1773232804377,2.9361429,85.119,85.077,4.31833721]
[1773232804571,2.9361429,85.118,85.077,4.31833721]
[1773232804766,2.9361429,85.117,85.077,4.31833721]
[1773232804969,10.572,85.12,85.077,4.31833721]
[1773232805170,2.93640371,85.119,85.089,4.31826969]
[1773232805373,2.79886923,85.158,85.089,4.31826969]
[1773232805765,10.569,85.146,85.107,4.16050007]
[1773232805968,2.79481345,85.156,85.074,4.16050007]
[1773232806173,8.76273817,85.182,85.075,164.55]
[1773232806378,7.00769957,85.182,85.083,35.28]
[1773232806569,7.00769957,85.182,85.091,21.63083625]
[1773232806769,7.00769957,85.166,85.115,10.573]
[1773232807170,7.00769957,85.166,85.09,21.63083625]
[1773232807376,7.00769957,85.166,85.081,21.63083625]
[1773232807570,7.00769957,85.166,85.073,21.63083625]
[1773232807768,7.00769957,85.166,85.072,21.63083625]
[1773232807966,10.569,85.144,85.095,10.575]
[1773232808275,10.569,85.144,85.07,21.63083625]
[1773232808481,7.00849319,85.149,85.07,21.63083625]
[1773232809380,7.00849319,85.149,85.101,10.575]
[1773232809770,7.00849319,85.149,85.074,21.156]
[1773232809970,10.567,85.16,85.111,10.573]
[1773232810381,6.75925314,85.163,85.056,35.28]
[1773232810978,6.75925314,85.163,85.078,21.155]
[1773232811178,10.567,85.162,85.078,21.155]
[1773232812380,10.567,85.162,85.114,10.573]
[1773232813380,6.75925314,85.163,85.121,10.572]
[1773232815780,6.74686501,85.178,85.13,10.571]
[1773232815972,6.74686501,85.178,85.068,35.28]
[1773232816480,6.74686501,85.178,85.132,10.571]
[1773232816679,17.31186501,85.176,85.132,10.571]
[1773232817776,6.74686501,85.176,85.074,35.28]
[1773232818372,6.74686501,85.176,85.136,10.57]
[1773232820383,6.74686501,85.176,85.142,10.569]
[1773232820582,10.564,85.187,85.142,10.569]
[1773232820883,6.73484817,85.184,85.142,10.569]
[1773232822778,6.73484817,85.184,85.109,21.148]
[1773232824288,6.72251965,85.202,85.094,49.64059065]
[1773232824486,6.72251965,85.202,85.105,14.36059065]
[1773232824791,6.72251965,85.202,85.094,35.28]
[1773232824792,6.72251965,85.202,85.118,21.145]
[1773232825090,6.67199749,85.2,85.107,14.36059065]
[1773232825390,6.67199749,85.2,85.095,14.36059065]
[1773232825590,6.67199749,85.177,85.09,14.36059065]
[1773232825788,6.67199749,85.177,85.084,14.36059065]
[1773232826092,6.67199749,85.177,85.085,14.36059065]
[1773232826286,6.67199749,85.177,85.084,14.36059065]
[1773232826593,10.567,85.163,85.084,14.36059065]
[1773232826788,6.67199749,85.177,85.084,14.36059065]
[1773232826984,6.67961934,85.169,85.134,10.571]
[1773232827194,6.67961934,85.208,85.095,14.36059065]
[1773232827395,6.67961934,85.208,85.097,14.36059065]
[1773232827593,6.67961934,85.185,85.103,21.149]
[1773232827784,6.67961934,85.185,85.091,14.36059065]
[1773232828189,10.565,85.182,85.146,10.569]
[1773232829288,6.66268269,85.199,85.12,21.145]
[1773232830395,6.66268269,85.197,85.12,21.145]
[1773232831384,6.58122109,85.187,85.143,10.569]
[1773232831590,6.58122109,85.187,85.12,21.145]
[1773232832188,6.58122109,85.183,85.12,21.145]
[1773232832393,6.58122109,85.183,85.095,14.36059065]
[1773232832792,6.58122109,85.181,85.141,10.57]
[1773232833387,6.58122109,85.181,85.148,10.569]
[1773232833596,6.54353802,85.218,85.098,14.36059065]
[1773232833793,6.54353802,85.216,85.098,14.36059065]
[1773232833994,6.54353802,85.214,85.098,14.36059065]
[1773232834201,6.54353802,85.213,85.099,14.36059065]
[1773232834392,6.54353802,85.213,85.1,14.36059065]
[1773232834592,17.10653802,85.196,85.1,14.36059065]
[1773232834795,6.54353802,85.196,85.113,14.36059065]
[1773232834995,6.54353802,85.237,85.114,49.64059065]
[1773232835197,6.54268839,85.216,85.137,21.141]
[1773232835603,6.54268839,85.216,85.113,14.36059065]
[1773232835896,6.54268839,85.205,85.111,14.36059065]
[1773232836102,6.54268839,85.205,85.109,14.36059065]
[1773232836394,6.54268839,85.205,85.111,14.36059065]
[1773232836593,6.54268839,85.205,85.11,14.36059065]
[1773232837189,6.54268839,85.205,85.111,14.36059065]
[1773232837389,21.116,85.239,85.154,10.568]
[1773232837390,17.10966768,85.197,85.154,10.568]
[1773232837898,10.563,85.195,85.154,10.568]
[1773232838093,6.54666768,85.194,85.154,10.568]
[1773232838601,6.54666768,85.192,85.154,10.568]
[1773232838899,6.54666768,85.192,85.16,10.567]
[1773232839496,6.57554373,85.237,85.167,10.566]
[1773232839702,6.57554373,85.235,85.117,35.28]
[1773232839996,6.57554373,85.216,85.117,35.28]
[1773232840195,6.57554373,85.216,85.117,49.64059065]
[1773232840394,6.57554373,85.216,85.12,164.464]
[1773232840695,6.57554373,85.216,85.128,35.28]
[1773232841094,6.57554373,85.216,85.153,10.568]
[1773232841997,6.57639298,85.196,85.094,14.36059065]
[1773232842192,6.57639298,85.196,85.091,35.28]
[1773232842700,6.57639298,85.184,85.091,49.64059065]
[1773232843199,6.57639298,85.184,85.092,14.36059065]
[1773232843904,6.57639298,85.184,85.077,35.28]
[1773232843905,6.60081094,85.182,85.102,21.149]
[1773232844606,6.60081094,85.178,85.102,21.149]
[1773232844999,6.60081094,85.178,85.093,35.28]
[1773232845305,6.60081094,85.178,85.069,35.28]
[1773232845702,6.60081094,85.178,85.106,21.148]
[1773232846506,6.60081094,85.178,85.141,10.57]
[1773232848411,6.60081094,85.178,85.147,10.569]
[1773232851304,6.60081094,85.178,85.153,10.568]
[1773232852007,6.60081094,85.178,85.145,10.569]
[1773232852208,6.60081094,85.178,85.115,21.146]
[1773232852408,6.60081094,85.178,85.091,35.28]
[1773232852607,6.60081094,85.178,85.087,35.28]
[1773232853207,6.60081094,85.178,85.087,56.91083625]
[1773232853405,6.60081094,85.178,85.089,35.28]
[1773232853611,6.58821881,85.169,85.1,21.15]
[1773232854306,6.58821881,85.169,85.129,10.571]
[1773232854506,6.58821881,85.186,85.085,35.28]
[1773232854905,6.58821881,85.176,85.137,10.57]
[1773232856315,6.58821881,85.176,85.087,35.28]
[1773232856509,6.58821881,85.176,85.089,35.28]
[1773232857613,6.58821881,85.176,85.137,10.57]
[1773232858109,6.58821881,85.176,85.111,21.147]
[1773232858709,6.52010801,85.174,85.13,10.571]
[1773232858915,6.52010801,85.174,85.111,21.147]
[1773232859805,6.52010801,85.174,85.136,10.57]
[1773232860010,6.52010801,85.174,85.111,21.147]
[1773232860809,6.49819812,85.172,85.093,35.28]
[1773232861005,6.49819812,85.172,85.134,10.571]
[1773232861416,6.49293754,85.169,85.086,21.63083625]
[1773232861614,6.49293754,85.169,85.075,21.63083625]
[1773232862216,6.49293754,85.157,85.075,21.63083625]
[1773232862409,6.49293754,85.174,85.082,35.28]
[1773232862616,6.49293754,85.172,85.129,10.571]
[1773232863318,6.51995612,85.163,85.092,21.152]
[1773232864014,6.51995612,85.161,85.092,21.152]
[1773232864516,6.51995612,85.161,85.073,21.157]
[1773232864718,21.129,85.187,85.066,21.63083625]
[1773232864719,6.51995612,85.149,85.066,21.63083625]
[1773232864913,6.51995612,85.149,85.064,21.63083625]
[1773232865112,6.51995612,85.149,85.066,21.63083625]
[1773232865313,6.51995612,85.149,85.063,35.28]
[1773232865515,6.51995612,85.149,85.078,21.155]
[1773232866018,21.129,85.187,85.111,10.573]
[1773232866019,6.54430891,85.147,85.111,10.573]
[1773232866519,6.54430891,85.147,85.081,21.155]
[1773232867512,6.54430891,85.147,85.064,21.63083625]
[1773232867914,6.54430891,85.147,85.061,35.28]
[1773232868111,6.54430891,85.147,85.111,10.573]
[1773232868512,6.54430891,85.147,85.06,35.28]
[1773232869118,6.54430891,85.147,85.102,10.574]
[1773232871118,6.59131988,85.144,85.094,10.575]
[1773232872426,6.60839946,85.138,85.094,10.575]
[1773232873221,10.57,85.139,85.045,21.63083625]
[1773232873222,6.59993786,85.128,85.045,35.28]
[1773232873426,6.59993786,85.128,85.023,35.28]
[1773232873920,6.59993786,85.131,85.026,56.91083625]
[1773232874125,6.59993786,85.131,85.017,164.663]
[1773232874126,6.59993786,85.131,85.031,35.28]
[1773232874320,6.59993786,85.127,85.083,10.577]
[1773232874519,6.59993786,85.127,85.031,35.28]
[1773232874520,6.59993786,85.127,85.043,21.164]
[1773232875315,6.62978656,85.125,85.075,10.578]
[1773232876524,6.62978656,85.122,85.075,10.578]
[1773232877628,6.71446316,85.115,85.043,21.164]
[1773232879429,6.71446316,85.115,85.013,35.28]
[1773232880228,6.70653238,85.112,85.001,35.28]
[1773232880530,6.70653238,85.112,85.007,35.28]
[1773232881426,6.70653238,85.112,85.032,21.167]
[1773232881732,6.70653238,85.112,85.008,35.28]
[1773232882434,6.70653238,85.112,85.034,21.166]
[1773232883033,6.70232864,85.11,85.034,21.166]
[1773232883229,6.70232864,85.11,84.999,35.28]
[1773232883625,6.6926472,85.099,85.017,21.17]
[1773232883827,6.6926472,85.099,84.988,35.28]
[1773232884233,6.6926472,85.099,85.019,21.17]
[1773232886339,6.6926472,85.099,85.049,10.581]
[1773232887240,2.93507154,85.145,85.013,3.95601615]
[1773232887241,3.82963241,85.087,85.013,3.95601615]
[1773232888338,3.82963241,85.085,85.035,10.583]
[1773232889045,0.3492748,85.074,84.983,3.95601615]
[1773232889738,0.3492748,85.074,84.915,28.79691103]
[1773232889739,0.3439987,85.055,84.996,3.95601615]
[1773232890534,8.62959255,85.126,84.972,3.95601615]
[1773232890535,0.3439987,85.05,84.972,3.95601615]
[1773232891941,0.30435955,85.04,84.985,3.95601615]
[1773232892137,0.30435955,85.101,84.985,3.95601615]
[1773232892943,8.59968609,85.12,85.004,10.587]
[1773232892944,0.30435955,85.051,85.004,10.587]
[1773232894043,0.30435955,85.051,85.012,10.586]
[1773232895444,0.30435955,85.051,85.002,10.587]
[1773232895644,0.30435955,85.051,84.998,3.95601615]
[1773232896843,0.30435955,85.051,85.01,10.586]
[1773232897841,0.30579432,85.071,84.998,3.95601615]
[1773232898846,0.30579432,85.069,85.025,10.584]
[1773232899245,0.30579432,85.069,84.998,3.95601615]
[1773232900449,0.37027368,85.059,85.009,10.586]
[1773232901053,0.37027368,85.057,85.009,10.586]
[1773232901948,0.40680321,85.055,85.009,10.586]
[1773232902550,0.40680321,85.069,85.017,3.95601615]
[1773232904448,0.41534815,85.066,85.022,10.584]
[1773232906856,0.41534815,85.066,85.017,3.95601615]
[1773232907054,0.41534815,85.066,84.98,21.18]
[1773232907055,0.41534815,85.066,85.003,3.95601615]
[1773232907957,0.355737,85.047,85.003,3.95601615]
[1773232908356,0.355737,85.045,85.005,10.586]
[1773232908556,0.355737,85.09,85.003,3.95601615]
[1773232908756,0.355737,85.061,85.01,14.54201615]